bitfinex/quotes_ETHUSD_20250411
["timestamp","ask_amount","ask_price","bid_price","bid_amount"]
[1744348014379,6.683,1541.4,1541.2,6.94837571]
[1744348014572,6.683,1541.4,1541.3,1.29038447]
[1744348014945,6.683,1541.4,1541.3,7.77840447]
[1744348015277,6.683,1541.4,1541.3,0.45978447]
[1744348015576,6.48681,1541.6,1541.3,1.29038447]
[1744348015781,13.16939,1541.7,1541.3,7.31836]
[1744348015942,6.683,1541.7,1541.4,6.94623292]
[1744348016279,0.33721966,1541.5,1541.4,6.94623292]
[1744348016441,13.16952,1541.7,1541.4,0.45896292]
[1744348016641,13.16952,1541.7,1541.4,6.48753]
[1744348016842,13.16952,1541.7,1541.5,0.45851679]
[1744348017057,6.683,1541.7,1541.5,0.45851679]
[1744348017466,6.683,1541.7,1541.5,6.94566679]
[1744348018382,6.683,1541.7,1541.5,0.45851679]
[1744348018887,6.683,1541.7,1541.6,0.7735]
[1744348019573,6.683,1541.7,1541.6,0.45821903]
[1744348020288,13.16934,1541.7,1541.6,0.45821903]
[1744348020488,15.134874,1541.7,1541.6,0.45821903]
[1744348020996,6.48696,1541.6,1541.3,7.26148]
[1744348021150,6.48696,1541.6,1541.3,0.7735]
[1744348021151,12.97397,1541.6,1541.3,0.7735]
[1744348021490,12.97397,1541.6,1540.7,6.74414843]
[1744348021491,6.48929,1541.0,1540.8,6.19414843]
[1744348021647,6.48904,1541.1,1540.8,6.19414843]
[1744348021842,12.97817,1541.1,1540.8,6.19414843]
[1744348022043,6.48929,1541.0,1540.8,6.19414843]
[1744348022288,7.28879,1541.0,1540.8,6.19414843]
[1744348022589,6.48929,1541.0,1540.8,6.19414843]
[1744348024980,6.48929,1541.0,1540.6,0.7735]
[1744348028813,6.48929,1541.0,1540.5,0.7735]
[1744348029867,6.48929,1541.0,1540.5,7.26475]
[1744348031017,6.48929,1541.0,1540.5,0.7735]
[1744348031317,10.83879,1541.0,1540.4,0.7735]
[1744348031522,13.72644438,1541.0,1540.4,0.7735]
[1744348031687,16.60149452,1541.0,1540.4,0.7735]
[1744348031886,16.93874614,1541.0,1540.4,0.7735]
[1744348033708,16.93874614,1541.0,1540.9,9.6e-06]
[1744348034637,20.82874614,1541.0,1540.9,9.6e-06]
[1744348034845,26.98874614,1541.0,1540.9,9.6e-06]
[1744348035937,29.78974614,1541.0,1540.9,9.6e-06]
[1744348036235,29.78974614,1541.0,1540.1,0.1]
[1744348036236,6.49246,1540.3,1540.1,0.1]
[1744348036397,19.67596,1540.3,1540.1,0.1]
[1744348036601,19.67596,1540.3,1540.2,1.21097057]
[1744348036924,6.691,1540.3,1540.2,1.21097057]
[1744348037696,13.18324,1540.3,1540.2,1.21097057]
[1744348037897,6.691,1540.3,1540.2,1.21097057]
[1744348039102,6.691,1540.3,1540.2,1.99136463]
[1744348039711,6.691,1540.3,1540.2,1.21097057]
[1744348039911,13.18324,1540.3,1540.2,1.21097057]
[1744348040117,13.18324,1540.3,1540.2,0.39637057]
[1744348040341,7.30576,1540.2,1540.1,0.1]
[1744348040650,7.30576,1540.2,1539.7,7.32386]
[1744348040812,6.49266,1540.2,1539.8,8.055676]
[1744348041014,6.49266,1540.2,1539.9,6.4939]
[1744348041446,12.98556,1540.2,1539.8,8.055676]
[1744348041652,6.49333,1540.1,1539.8,8.055876]
[1744348042747,12.98555,1540.2,1539.8,8.055876]
[1744348042952,13.1833,1540.3,1539.9,0.8055876]
[1744348043245,6.4923,1540.3,1540.0,0.8292]
[1744348043454,6.692,1540.2,1540.0,0.8292]
[1744348044821,6.692,1540.2,1540.0,13.81582]
[1744348045309,6.49195,1540.4,1540.1,6.49308]
[1744348045507,6.693,1540.5,1540.3,0.8292]
[1744348046112,6.693,1540.5,1540.2,7.141818]
[1744348046113,68.83429,1540.8,1540.4,0.8292]
[1744348046740,6.49097,1540.6,1540.2,0.8145]
[1744348047049,12.98442,1540.4,1540.2,0.8145]
[1744348047353,13.18521,1540.4,1540.2,0.8145]
[1744348047738,6.693,1540.4,1540.2,13.79961]
[1744348047937,6.693,1540.4,1540.3,8.2040606]
[1744348048252,7.32346,1540.7,1540.3,14.6961206]
[1744348048253,6.693,1540.6,1540.3,14.6961206]
[1744348048455,6.693,1540.6,1540.4,0.8145]
[1744348048618,6.693,1540.6,1540.5,0.33205849]
[1744348049420,13.18397,1540.6,1540.5,0.33205849]
[1744348049725,13.18397,1540.6,1540.3,0.49453811]
[1744348049935,13.18397,1540.6,1540.3,7.92165281]
[1744348050259,55.98829824,1540.8,1540.4,7.63816758]
[1744348050260,6.82759824,1540.8,1540.4,7.63816758]
[1744348050417,6.4906,1540.7,1540.4,7.63816758]
[1744348050748,6.49111,1540.6,1540.4,1.14638758]
[1744348051313,1.17019824,1540.8,1540.4,7.63798758]
[1744348051314,6.82746824,1540.8,1540.4,7.63798758]
[1744348051516,13.31792824,1540.8,1540.4,9.18754607]
[1744348051819,6.82746824,1540.8,1540.4,15.67920607]
[1744348052150,0.33729824,1540.8,1540.4,0.33188758]
[1744348052317,0.33729824,1540.8,1540.5,0.8145]
[1744348052521,6.82765824,1540.8,1540.5,0.8145]
[1744348052739,6.49069,1540.7,1540.6,0.33163856]
[1744348053139,6.49069,1540.7,1540.4,0.8145]
[1744348053352,6.49069,1540.7,1540.6,0.33163856]
[1744348053553,6.49069,1540.7,1540.5,0.33187011]
[1744348053749,6.49069,1540.7,1540.6,0.33159423]
[1744348054155,6.49102,1540.6,1540.4,0.8145]
[1744348054841,6.49102,1540.6,1540.2,7.30696]
[1744348055044,6.49145,1540.5,1540.2,9.582156]
[1744348055241,6.49145,1540.5,1540.3,0.6057611]
[1744348056481,7.66033824,1540.8,1540.3,0.6057611]
[1744348056482,6.49063,1540.7,1540.4,0.8145]
[1744348057283,12.98143,1540.7,1540.4,0.8145]
[1744348057781,6.49105,1540.6,1540.4,0.8145]
[1744348057980,12.98235,1540.6,1540.4,0.8145]
[1744348058657,13.46442,1540.5,1540.2,0.8145]
[1744348058857,13.80050824,1540.8,1540.3,0.8145]
[1744348059053,13.80050824,1540.8,1540.4,0.60608571]
[1744348059054,6.49139,1540.5,1540.4,0.60608571]
[1744348059589,6.49116,1540.6,1540.3,0.8145]
[1744348059790,20.29121824,1540.8,1540.4,6.49167]
[1744348059994,15.82983006,1540.8,1540.4,6.49162]
[1744348060379,15.82983006,1540.8,1540.5,7.26781]
[1744348061493,15.82983006,1540.8,1540.5,0.7765]
[1744348061666,15.82983006,1540.8,1540.5,7.26785]
[1744348061870,15.82980006,1540.8,1540.6,0.32996631]
[1744348062593,7.31029824,1540.8,1540.6,0.32996631]
[1744348062761,7.31029824,1540.8,1540.6,6.82087631]
[1744348063327,7.31029824,1540.8,1540.6,0.32996631]
[1744348063679,7.31029824,1540.8,1540.6,6.82068631]
[1744348063921,7.31029824,1540.8,1540.6,13.31146631]
[1744348064304,7.31029824,1540.8,1540.6,6.82068631]
[1744348064506,7.31029824,1540.8,1540.6,13.31149631]
[1744348064706,7.31029824,1540.8,1540.7,7.24725]
[1744348064903,7.31029824,1540.8,1540.7,7.57561693]
[1744348065106,0.33729824,1540.8,1540.7,7.57561693]
[1744348065419,0.33729824,1540.8,1540.7,8.18152819]
[1744348067622,0.33729824,1540.8,1540.7,14.13347819]
[1744348067795,0.33729824,1540.8,1540.7,19.33677797]
[1744348068130,0.33729824,1540.8,1540.7,19.69995956]
[1744348068309,6.973,1541.1,1541.0,7.24599]
[1744348068512,6.973,1541.1,1541.0,7.57187517]
[1744348069517,6.4882,1541.3,1541.0,7.57187517]
[1744348069824,7.29558,1541.4,1541.0,14.06103517]
[1744348070023,7.29558,1541.4,1541.0,15.41765088]
[1744348070522,13.78349,1541.4,1541.0,8.92836088]
[1744348070723,13.78349,1541.4,1541.0,15.41747088]
[1744348071428,6.48803,1541.3,1541.0,8.92831088]
[1744348072933,6.48887,1541.1,1541.0,0.32588517]
[1744348073423,6.48945,1541.0,1540.7,2.95999978]
[1744348074203,13.45992,1541.1,1540.7,15.94078978]
[1744348074407,13.45992,1541.1,1540.8,6.48996]
[1744348074734,13.46005,1541.1,1540.8,6.48996]
[1744348074905,6.971,1541.1,1540.8,8.08399198]
[1744348075627,13.46,1541.1,1540.8,1.59404198]
[1744348075829,13.46,1541.1,1540.8,8.08413198]
[1744348076034,19.94911,1541.1,1540.8,8.08413198]
[1744348076336,13.46,1541.1,1540.8,8.08413198]
[1744348076634,19.94909,1541.1,1540.8,8.08413198]
[1744348076829,19.94909,1541.1,1540.8,6.49009]
[1744348077032,6.48935,1541.0,1540.7,7.72199788]
[1744348077236,6.48935,1541.0,1540.7,1.23163788]
[1744348077237,12.97885,1541.0,1540.7,1.23163788]
[1744348077595,6.48935,1541.0,1540.7,1.23163788]
[1744348077825,6.48935,1541.0,1540.7,0.7567]
[1744348077826,6.48929,1541.0,1540.7,0.7567]
[1744348078130,0.7798,1540.9,1540.5,6.71855]
[1744348078345,12.98148,1540.7,1540.5,0.7666]
[1744348078552,6.491,1540.6,1540.3,7.2587]
[1744348078736,6.491,1540.6,1540.4,0.60531897]
[1744348079451,13.46171,1540.7,1540.4,0.60531897]
[1744348079631,6.971,1540.7,1540.5,6.49118]
[1744348079836,6.971,1540.7,1540.6,0.7666]
[1744348080656,6.971,1540.7,1540.5,0.7666]
[1744348081159,6.971,1540.7,1540.6,0.32669083]
[1744348081865,6.971,1540.7,1540.6,7.42301804]
[1744348082162,6.971,1540.7,1540.6,8.89109984]
[1744348082668,6.972,1541.1,1540.8,0.7666]
[1744348082844,6.972,1541.1,1540.9,6.48969]
[1744348083159,6.972,1541.1,1540.9,0.32586375]
[1744348083316,13.46103,1541.1,1540.9,0.32586375]
[1744348083520,13.46103,1541.1,1540.8,0.7666]
[1744348083722,6.972,1541.1,1540.9,0.32510696]
[1744348083918,6.972,1541.1,1540.8,8.631332]
[1744348084119,6.972,1541.1,1540.9,0.32506268]
[1744348084359,13.46095,1541.1,1540.8,2.141362]
[1744348084564,13.46095,1541.1,1541.0,0.3245878]
[1744348084772,19.95005,1541.1,1540.9,0.32475272]
[1744348084922,19.95005,1541.1,1541.0,0.32452139]
[1744348085265,6.49026,1540.8,1540.6,5.95195]
[1744348086249,6.49055,1540.7,1540.6,5.95195]
[1744348086575,13.31555,1540.7,1540.4,7.25841]
[1744348087138,13.31555,1540.7,1540.5,0.6057323]
[1744348087644,6.825,1540.7,1540.5,7.0971223]
[1744348087852,6.825,1540.7,1540.5,8.53265653]
[1744348088252,6.825,1540.7,1540.5,7.92692423]
[1744348088847,6.825,1540.7,1540.5,1.43553423]
[1744348090244,13.31556,1540.7,1540.5,1.43553423]
[1744348090446,6.49224,1540.3,1540.2,5.95195]
[1744348090668,6.49224,1540.3,1540.0,5.95195]
[1744348090669,6.49266,1540.2,1540.0,5.95195]
[1744348090908,6.4931,1540.1,1539.9,12.14609843]
[1744348091207,6.4935,1540.0,1539.9,12.14609843]
[1744348091364,6.4935,1540.0,1539.9,6.19414843]
[1744348092307,8.61886,1540.0,1539.9,6.19414843]
[1744348092865,7.3202,1540.0,1539.9,6.19414843]
[1744348093066,12.98574,1540.2,1539.9,6.19414843]
[1744348093270,6.49322,1540.1,1539.9,6.19414843]
[1744348094007,6.49322,1540.1,1539.8,7.27844]
[1744348094196,12.9866,1540.1,1539.8,0.7841]
[1744348094392,6.4937,1540.0,1539.7,5.95195]
[1744348094605,13.81422,1540.0,1539.7,5.95195]
[1744348094786,7.3204,1540.0,1539.7,5.95195]
[1744348095383,7.31897,1540.3,1539.8,5.95195]
[1744348095613,7.6537,1540.3,1540.0,6.49333]
[1744348095801,7.6537,1540.3,1539.9,0.7841]
[1744348095802,14.14595,1540.3,1539.9,7.27788]
[1744348096002,20.43144,1540.3,1539.9,8.600863]
[1744348096197,20.43145,1540.3,1540.0,0.27397137]
[1744348096400,6.49286,1540.2,1540.0,0.27397137]
[1744348096912,20.43158,1540.3,1540.0,0.27397137]
[1744348097280,6.49267,1540.2,1540.0,0.27397137]
[1744348097611,6.49308,1540.1,1540.0,0.27397137]
[1744348097916,12.98643,1540.1,1539.7,6.49474]
[1744348098082,2.043162,1540.2,1539.6,13.23123]
[1744348098083,6.49392,1540.0,1539.8,0.27746627]
[1744348098283,6.49392,1540.0,1539.6,13.23123]
[1744348098491,6.49392,1540.0,1539.7,0.27774245]
[1744348098927,6.827,1539.9,1539.7,6.77245245]
[1744348100128,6.827,1539.9,1539.7,6.77236245]
[1744348101140,6.827,1539.9,1539.8,6.49434]
[1744348101446,6.827,1539.9,1539.8,6.7751445]
[1744348101630,6.827,1539.9,1539.8,8.88621895]
[1744348102756,14.14742,1540.2,1539.8,1.60777895]
[1744348103050,14.14742,1540.2,1539.8,8.88619895]
[1744348103051,6.49313,1540.1,1539.8,8.88619895]
[1744348103424,14.14775,1540.2,1539.8,8.88619895]
[1744348103624,14.14775,1540.2,1539.8,15.38038895]
[1744348103810,20.64066,1540.2,1539.8,8.88606895]
[1744348104763,14.14761,1540.2,1539.8,8.88606895]
[1744348105056,20.64051,1540.2,1539.8,8.88606895]
[1744348105755,14.1476,1540.2,1539.9,0.8886069]
[1744348105918,20.64051,1540.2,1539.9,1.16870723]
[1744348106424,20.64055,1540.2,1539.9,1.16870723]
[1744348108157,6.49318,1540.1,1539.9,1.16870723]
[1744348108358,6.49318,1540.1,1539.9,0.28010033]
[1744348110020,20.64024,1540.2,1539.9,0.28010033]
[1744348110357,20.64039,1540.2,1539.9,0.28010033]
[1744348111077,14.14742,1540.2,1539.9,0.28010033]
[1744348111358,20.64029,1540.2,1539.9,0.28010033]
[1744348111522,6.49309,1540.1,1539.9,0.28010033]
[1744348111722,6.49309,1540.1,1539.9,1.03593536]
[1744348112858,6.828,1540.2,1539.9,7.52960536]
[1744348113033,13.3208,1540.2,1539.9,7.52960536]
[1744348113235,6.828,1540.2,1539.9,7.52960536]
[1744348114523,13.32071,1540.2,1539.9,7.52960536]
[1744348114724,13.32071,1540.2,1539.9,1.03593536]
[1744348115765,13.32071,1540.2,1539.9,7.52979536]
[1744348115969,13.32071,1540.2,1540.0,0.75297954]
[1744348116134,13.32071,1540.2,1540.1,0.27861497]
[1744348116826,0.33731067,1540.4,1540.1,1.06271497]
[1744348117069,0.33731067,1540.4,1540.2,6.49244]
[1744348117231,6.755,1540.5,1540.3,6.49224]
[1744348117445,6.755,1540.5,1540.3,8.0668383]
[1744348117661,6.755,1540.5,1540.3,1.5745983]
[1744348119469,13.24647,1540.5,1540.3,1.5745983]
[1744348119695,13.24647,1540.5,1540.3,0.2761303]
[1744348119981,13.24647,1540.5,1540.2,6.49265]
[1744348120132,13.24647,1540.5,1540.4,0.27598515]
[1744348120330,13.24647,1540.5,1540.2,6.49265]
[1744348120535,13.24647,1540.5,1540.3,0.27621666]
[1744348122375,7.27612,1540.4,1540.3,0.27621666]
[1744348122782,7.27612,1540.4,1539.7,0.7913]
[1744348122783,7.27696,1540.2,1539.7,0.7913]
[1744348122949,6.49412,1539.9,1539.7,0.7913]
[1744348123141,6.49412,1539.9,1539.8,0.88410978]
[1744348123337,6.4935,1540.0,1539.8,0.88410978]
[1744348123552,14.961555,1540.0,1539.8,0.88410978]
[1744348123855,7.27822,1539.9,1539.8,0.27738458]
[1744348124169,6.49438,1539.8,1539.4,13.87256803]
[1744348124366,6.755,1539.7,1539.6,0.60678915]
[1744348124575,6.755,1539.7,1539.6,0.86196274]
[1744348126707,6.755,1539.7,1539.6,0.25517359]
[1744348126999,6.755,1539.7,1539.4,13.87256803]
[1744348127296,13.24991,1539.7,1539.4,6.58551803]
[1744348127696,6.755,1539.7,1539.5,0.60616861]
[1744348128678,6.755,1539.7,1539.6,0.7913]
[1744348129096,6.755,1539.7,1539.6,7.89265861]
[1744348129561,6.755,1539.7,1539.6,1.39746861]
[1744348129913,6.755,1539.7,1539.6,1.76104008]
[1744348130065,6.755,1539.7,1539.6,3.83142409]
[1744348130415,6.755,1539.7,1539.6,9.96304262]
[1744348131005,6.755,1539.7,1539.6,9.17174262]
[1744348131211,6.755,1539.7,1539.6,0.60616861]
[1744348135386,6.755,1539.7,1539.6,7.10135861]
[1744348135697,6.49266,1540.2,1539.7,6.49471]
[1744348135698,7.27746,1540.1,1539.7,6.49471]
[1744348136006,6.756,1540.0,1539.8,6.49416]
[1744348136219,6.756,1540.0,1539.8,7.28546]
[1744348136385,6.756,1540.0,1539.9,0.944546]
[1744348136898,6.756,1540.0,1539.9,8.04407593]
[1744348137099,6.756,1540.0,1539.9,7.438466]
[1744348137710,7.5403,1540.2,1539.9,13.932386]
[1744348137898,6.756,1540.2,1540.0,7.8866086]
[1744348138211,6.756,1540.2,1540.0,1.3932386]
[1744348139319,6.756,1540.2,1540.0,7.8865686]
[1744348140335,13.24885,1540.2,1539.9,0.216]
[1744348141002,7.31145,1540.1,1539.9,0.216]
[1744348141207,13.80484,1540.1,1540.0,0.25671114]
[1744348141891,13.2487,1540.2,1540.0,0.25671114]
[1744348142113,26.19400548,1540.2,1540.0,0.25671114]
[1744348142323,13.2487,1540.2,1540.0,0.25671114]
[1744348142494,19.74159,1540.2,1540.0,0.25671114]
[1744348143098,6.49308,1540.1,1540.0,0.25671114]
[1744348143421,6.4936,1540.0,1539.7,5.95195]
[1744348143611,12.98737,1540.0,1539.7,5.95195]
[1744348143808,6.49403,1539.9,1539.7,5.95195]
[1744348144006,6.4936,1540.0,1539.7,5.95195]
[1744348144309,0.8182,1539.9,1539.7,5.95195]
[1744348144493,6.756,1539.8,1539.7,12.44657]
[1744348144715,6.756,1539.8,1539.7,5.95195]
[1744348146034,6.756,1539.8,1539.7,13.81877426]
[1744348146535,6.756,1539.8,1539.7,7.32400426]
[1744348146736,6.756,1539.8,1539.7,6.55760426]
[1744348146939,6.756,1539.8,1539.7,0.60565426]
[1744348147438,6.756,1539.8,1539.7,7.10042426]
[1744348147731,6.756,1539.8,1539.7,8.55728469]
[1744348147901,6.756,1539.8,1539.7,2.06251469]
[1744348148303,6.756,1539.8,1539.7,8.55728469]
[1744348149142,6.756,1539.8,1539.7,8.92088801]
[1744348149339,6.756,1539.8,1539.7,0.96925758]
[1744348149340,14.06854,1539.8,1539.7,0.96925758]
[1744348149521,14.06854,1539.8,1539.7,0.36360332]
[1744348149899,14.06854,1539.8,1539.6,0.207]
[1744348150341,14.06854,1539.8,1539.5,12.4475]
[1744348151050,14.06854,1539.8,1539.6,0.60652136]
[1744348151256,6.756,1539.8,1539.6,0.60652136]
[1744348151559,6.756,1539.8,1539.7,7.10129136]
[1744348151853,6.756,1539.8,1539.7,0.97056702]
[1744348152657,7.5546,1539.8,1539.7,0.97056702]
[1744348152958,14.04894,1539.8,1539.7,0.60652136]
[1744348153458,20.54356,1539.8,1539.6,0.60652136]
[1744348153675,21.948454,1539.8,1539.6,0.60652136]
[1744348154173,21.948454,1539.8,1539.4,7.7147696]
[1744348154543,21.948454,1539.8,1539.5,0.60708549]
[1744348154756,15.453834,1539.8,1539.5,0.60708549]
[1744348154938,14.04894,1539.8,1539.6,0.60708549]
[1744348155376,20.54365,1539.8,1539.6,0.60708549]
[1744348155677,20.54365,1539.8,1539.5,0.60708549]
[1744348155884,20.54365,1539.8,1539.6,0.60708549]
[1744348156040,14.04894,1539.8,1539.6,0.60708549]
[1744348156375,14.04894,1539.8,1539.4,14.2105796]
[1744348156376,16.103233,1539.8,1539.7,0.2572293]
[1744348156771,16.103233,1539.8,1539.4,1.2188696]
[1744348156772,6.49483,1539.7,1539.4,7.7147596]
[1744348156981,6.49483,1539.7,1539.5,0.3642654]
[1744348157482,12.98984,1539.7,1539.6,0.60710999]
[1744348158593,6.49519,1539.6,1539.5,0.60710999]
[1744348159582,0.7986,1539.9,1539.5,0.60710999]
[1744348159771,6.49403,1539.9,1539.6,8.29392038]
[1744348159971,6.49364,1540.0,1539.6,8.29392038]
[1744348160173,6.49364,1540.0,1539.6,3.27772542]
[1744348160501,7.26278,1539.9,1539.7,0.60710999]
[1744348160798,0.7687,1539.9,1539.7,0.60710999]
[1744348160958,6.49351,1540.0,1539.8,0.60710999]
[1744348161698,6.49351,1540.0,1539.7,0.7501]
[1744348162060,14.32520672,1540.1,1539.7,7.24479]
[1744348162265,14.32520672,1540.1,1539.7,8.618697]
[1744348162675,13.98783,1540.1,1539.8,0.60690976]
[1744348162875,20.48117,1540.1,1539.8,0.97105588]
[1744348163400,20.48117,1540.1,1539.8,0.36414612]
[1744348164002,6.4935,1540.0,1539.9,0.60688559]
[1744348165100,6.4935,1540.0,1539.8,0.60688559]
[1744348168099,6.4935,1540.0,1539.7,7.868597]
[1744348168704,13.98783,1540.1,1539.7,14.363167]
[1744348168877,6.726,1540.1,1539.8,8.0612697]
[1744348169083,6.726,1540.1,1539.8,8.66835083]
[1744348169608,6.726,1540.1,1539.9,0.60708113]
[1744348169905,19.71249,1540.1,1539.7,8.648957]
[1744348170199,19.71249,1540.1,1539.8,0.3643091]
[1744348170398,7.28373,1540.0,1539.8,0.3643091]
[1744348170605,13.77757,1540.0,1539.8,0.3643091]
[1744348170985,7.28373,1540.0,1539.7,0.3643091]
[1744348171189,13.77744,1540.0,1539.7,0.3643091]
[1744348171390,13.77744,1540.0,1539.8,0.25697833]
[1744348171598,16.05396658,1540.0,1539.8,0.25697833]
[1744348171901,16.05396658,1540.0,1539.6,6.495]
[1744348172085,6.49394,1539.9,1539.5,19.72329]
[1744348172304,13.7774,1540.0,1539.7,0.60728325]
[1744348172491,7.2837,1540.0,1539.7,0.60728325]
[1744348172672,7.2837,1540.0,1539.8,0.60728325]
[1744348173072,7.2837,1540.0,1539.7,0.60728325]
[1744348173602,6.49396,1539.9,1539.7,0.60728325]
[1744348173805,12.98749,1540.0,1539.8,0.60728325]
[1744348174010,13.2186,1540.0,1539.9,0.60728325]
[1744348174415,6.725,1540.0,1539.9,0.60728325]
[1744348175212,6.725,1540.0,1539.9,0.97164419]
[1744348178621,0.33737329,1540.3,1539.9,0.97164419]
[1744348178810,0.33737329,1540.3,1540.2,6.49266]
[1744348179005,0.33737329,1540.3,1540.2,8.39850125]
[1744348179209,13.90633,1540.6,1540.2,15.67136125]
[1744348179409,13.90633,1540.6,1540.3,0.60728325]
[1744348180225,13.90633,1540.6,1540.2,15.064078]
[1744348180918,13.90633,1540.6,1540.3,0.60609893]
[1744348181110,20.39752,1540.6,1540.3,0.60609893]
[1744348181421,20.39751,1540.6,1540.3,0.60609893]
[1744348181722,13.90629,1540.6,1540.3,0.60609893]
[1744348182225,13.90629,1540.6,1540.2,8.571258]
[1744348182226,6.49142,1540.5,1540.2,8.571218]
[1744348182428,6.49142,1540.5,1540.3,0.8571218]
[1744348182628,6.49142,1540.5,1540.2,8.571218]
[1744348183431,12.98304,1540.5,1540.2,2.078758]
[1744348183640,6.49245,1540.3,1540.1,5.95195]
[1744348184323,7.26834,1540.4,1540.1,12.44501]
[1744348184791,13.7604,1540.4,1540.1,5.95195]
[1744348185128,7.26834,1540.4,1540.1,5.95195]
[1744348185314,13.76045,1540.4,1540.1,5.95195]
[1744348185489,7.26834,1540.4,1540.1,5.95195]
[1744348185685,8.644321,1540.4,1540.1,5.95195]
[1744348186219,8.644321,1540.4,1540.2,0.2549321]
[1744348186828,6.49147,1540.5,1540.3,0.7542]
[1744348187002,6.49147,1540.5,1540.4,0.2542472]
[1744348187707,12.98319,1540.5,1540.2,0.7542]
[1744348187897,12.98319,1540.5,1540.4,0.25429155]
[1744348188229,6.49147,1540.5,1540.4,0.25429155]
[1744348188403,6.49139,1540.5,1540.2,13.7392]
[1744348188622,19.60723,1540.6,1540.4,0.25420297]
[1744348188832,19.60723,1540.6,1540.3,0.25443455]
[1744348189232,19.60729,1540.6,1540.3,0.25443455]
[1744348189924,12.98303,1540.5,1540.3,0.25443455]
[1744348190147,6.49143,1540.5,1540.3,0.25443455]
[1744348190818,19.60718,1540.6,1540.3,0.25443455]
[1744348191354,13.11606,1540.6,1540.3,0.25443455]
[1744348191753,19.60727,1540.6,1540.3,0.25443455]
[1744348192119,13.11606,1540.6,1540.3,0.25443455]
[1744348192753,13.11606,1540.6,1540.3,8.14600301]
[1744348192920,13.11606,1540.6,1540.3,14.63808301]
[1744348195158,6.625,1540.6,1540.3,14.63808301]
[1744348195358,0.7765,1540.7,1540.4,6.49158]
[1744348195519,0.7765,1540.7,1540.5,6.49137]
[1744348195520,6.624,1540.7,1540.5,6.49137]
[1744348195721,6.624,1540.7,1540.5,8.11639687]
[1744348195919,6.624,1540.7,1540.5,1.62518687]
[1744348196756,13.11458,1540.7,1540.5,1.62518687]
[1744348196926,6.49097,1540.6,1540.5,0.25147187]
[1744348197253,6.49182,1540.4,1540.3,5.95195]
[1744348197427,6.49182,1540.4,1540.0,6.49344]
[1744348197428,6.49286,1540.2,1540.0,0.7908]
[1744348197961,19.60764,1540.3,1540.0,0.7908]
[1744348198134,6.49268,1540.2,1540.0,2.114444]
[1744348198963,6.49364,1540.0,1539.7,5.95195]
[1744348199336,6.4935,1540.0,1539.7,5.95195]
[1744348199552,6.49434,1539.8,1539.7,5.95195]
[1744348199726,6.49434,1539.8,1539.5,12.44751]
[1744348200056,6.49434,1539.8,1539.7,0.60589582]
[1744348200262,13.11711,1539.9,1539.6,1.244751]
[1744348200566,6.623,1539.9,1539.6,14.234741]
[1744348200765,6.623,1539.9,1539.6,7.739741]
[1744348200980,6.49452,1539.8,1539.5,5.95195]
[1744348201150,13.76274,1539.8,1539.5,5.95195]
[1744348201351,6.623,1539.9,1539.7,0.7908]
[1744348201565,6.623,1539.9,1539.8,6.49434]
[1744348201860,6.623,1539.9,1539.8,6.74823846]
[1744348202065,6.49308,1540.1,1539.8,8.75724066]
[1744348202469,13.89029,1540.2,1539.8,15.25140066]
[1744348202691,20.3832,1540.2,1539.8,14.10336531]
[1744348203170,6.49312,1540.1,1539.8,14.10336531]
[1744348204072,6.49312,1540.1,1539.8,7.60920531]
[1744348204275,13.89029,1540.2,1539.9,0.76092053]
[1744348204276,6.624,1540.2,1539.9,0.76092053]
[1744348204436,6.624,1540.2,1540.0,7.28422]
[1744348204642,6.624,1540.2,1540.1,0.25554687]
[1744348204868,6.624,1540.2,1540.1,6.74862687]
[1744348205075,6.624,1540.4,1540.1,7.35435947]
[1744348205260,6.624,1540.4,1540.2,0.73543595]
[1744348205779,6.624,1540.4,1540.3,0.25430837]
[1744348206344,6.624,1540.4,1540.3,1.04510837]
[1744348207052,6.624,1540.4,1540.3,8.14303339]
[1744348207469,6.577,1540.7,1540.4,6.49178]
[1744348207668,13.06771,1540.7,1540.5,0.649178]
[1744348207865,13.06771,1540.7,1540.5,0.25357962]
[1744348209552,6.577,1540.7,1540.5,0.25357962]
[1744348209751,6.577,1540.7,1540.5,6.74490962]
[1744348210551,6.577,1540.7,1540.5,6.74474962]
[1744348210755,6.577,1540.7,1540.6,0.6054186]
[1744348211046,6.48974,1540.9,1540.7,6.49024]
[1744348211047,6.576,1540.9,1540.7,6.49024]
[1744348211246,13.40183203,1541.2,1540.9,0.7908]
[1744348211446,6.91335203,1541.2,1540.9,7.28029]
[1744348211670,6.91335203,1541.2,1541.0,0.25242271]
[1744348211847,6.576,1541.2,1541.0,1.00569398]
[1744348212047,13.06464,1541.2,1541.0,1.00569398]
[1744348212244,13.06464,1541.2,1541.0,0.25242271]
[1744348213172,6.576,1541.2,1541.0,0.25242271]
[1744348213372,6.48887,1541.1,1541.0,0.25242271]
[1744348214680,6.48887,1541.1,1540.8,5.95195]
[1744348214883,12.97796,1541.1,1541.0,0.25242271]
[1744348215198,12.97796,1541.1,1540.9,0.25265403]
[1744348215403,12.97796,1541.1,1541.0,0.25242271]
[1744348215799,12.97796,1541.1,1540.8,5.95195]
[1744348216003,12.97796,1541.1,1541.0,0.25242271]
[1744348216189,12.97796,1541.1,1540.9,0.25265403]
[1744348216389,6.48971,1540.9,1540.8,5.95195]
[1744348216794,6.48929,1541.0,1540.8,5.95195]
[1744348217392,6.48929,1541.0,1540.8,6.627485]
[1744348218607,6.48894,1541.1,1540.8,6.627485]
[1744348218906,6.576,1541.2,1540.8,13.117615]
[1744348219092,6.576,1541.2,1541.0,0.8034]
[1744348219919,13.06445,1541.2,1541.0,0.8034]
[1744348220109,19.5532,1541.2,1541.0,0.8034]
[1744348220409,6.48887,1541.1,1541.0,0.8034]
[1744348220618,12.97713,1541.2,1541.0,0.8034]